fUSD/lending_fUSD_20250916
["ID","MTS","AMOUNT","RATE_DAILY","PERIOD"]
[385797644,1758047450027,-400.0,0.00030136,6]
[385797645,1758047450036,-487.45,0.00030136,6]
[385797646,1758047450045,-400.0,0.00030136,6]
[385797647,1758047450054,-400.0,0.00030136,6]
[385797648,1758047450063,-400.0,0.00030136,6]
[385797649,1758047450073,-400.0,0.00030136,6]
[385797650,1758047450083,-400.0,0.00030136,6]
[385797651,1758047450093,-403.46625063,0.00030136,6]
[385797652,1758047450102,-499.09,0.00030136,6]
[385797653,1758047450111,-400.0,0.00030136,6]
[385797654,1758047450121,-400.0,0.00030136,6]
[385797655,1758047450129,-400.0,0.00030136,6]
[385797656,1758047450138,-400.0,0.00030136,6]
[385797657,1758047450147,-400.0,0.00030136,6]
[385797658,1758047450157,-1187.49,0.00030136,6]
[385797659,1758047450166,-400.62802612,0.00030136,6]
[385797660,1758047450175,-400.0,0.00030136,6]
[385797661,1758047450184,-400.0,0.00030136,6]
[385797662,1758047450193,-1125.3,0.00030136,6]
[385797663,1758047450202,-400.0,0.00030136,6]
[385797664,1758047450211,-475.5,0.00030136,6]
[385797665,1758047450220,-400.0,0.00030136,6]
[385797666,1758047450229,-2326.43,0.00030136,6]
[385797667,1758047450238,-400.0,0.00030136,6]
[385797668,1758047450247,-1132.05,0.00030136,6]
[385797669,1758047450256,-409.27001771,0.00030136,6]
[385797670,1758047450265,-547.68,0.00030136,6]
[385797671,1758047450274,-406.94,0.00030136,6]
[385797672,1758047450283,-400.0,0.00030136,6]
[385797673,1758047450292,-400.0,0.00030136,6]
[385797674,1758047450301,-493.22,0.00030136,6]
[385797675,1758047450310,-400.0,0.00030136,6]
[385797676,1758047450319,-402.27819973,0.00030136,6]
[385797677,1758047450328,-603.03,0.00030136,6]
[385797678,1758047450338,-400.0,0.00030136,6]
[385797679,1758047450347,-400.0,0.00030136,6]
[385797680,1758047450357,-400.0,0.00030136,6]
[385797681,1758047450366,-400.0,0.00030136,6]
[385797682,1758047450375,-683.25,0.00030136,6]
[385797683,1758047450384,-483.51,0.00030136,6]
[385797684,1758047450393,-400.0,0.00030136,6]
[385797685,1758047450405,-400.0,0.00030136,6]
[385797686,1758047450414,-401.23338206,0.00030136,6]
[385797687,1758047450423,-400.0,0.00030136,6]
[385797688,1758047450433,-657.26,0.00030136,6]
[385797689,1758047450441,-400.0,0.00030136,6]
[385797690,1758047450451,-1051.05,0.00030136,6]
[385797691,1758047450460,-400.0,0.00030136,6]
[385797692,1758047450470,-400.0,0.00030136,6]
[385797693,1758047450480,-400.0,0.00030136,6]
[385797694,1758047450490,-4656.8,0.00030136,6]
[385797695,1758047450499,-560.56,0.00030136,6]
[385797696,1758047450508,-400.0,0.00030136,6]
[385797697,1758047450517,-400.0,0.00030136,6]
[385797698,1758047450526,-400.0,0.00030136,6]
[385797699,1758047450536,-400.0,0.00030136,6]
[385797700,1758047450545,-589.24,0.00030136,6]
[385797701,1758047450554,-400.0,0.00030136,6]
[385797702,1758047450564,-400.0,0.00030136,6]
[385797703,1758047450572,-400.0,0.00030136,6]
[385797704,1758047450582,-624.32,0.00030136,6]
[385797705,1758047450591,-588.79,0.00030136,6]
[385797706,1758047450600,-637.33,0.00030136,6]
[385797707,1758047450609,-400.0,0.00030136,6]
[385797708,1758047450618,-648.06,0.00030136,6]
[385797709,1758047450627,-407.71,0.00030136,6]
[385797710,1758047450637,-400.0,0.00030136,6]
[385797711,1758047450646,-400.0,0.00030136,6]
[385797712,1758047450657,-434.75,0.00030136,6]
[385797713,1758047450667,-629.94,0.00030136,6]
[385797714,1758047450676,-400.0,0.00030136,6]
[385797715,1758047450685,-400.0,0.00030136,6]
[385797716,1758047450694,-400.0,0.00030136,6]
[385797717,1758047450703,-400.0,0.00030136,6]
[385797718,1758047450712,-477.37,0.00030136,6]
[385797719,1758047450722,-1948.02,0.00030136,6]
[385797720,1758047450731,-400.0,0.00030136,6]
[385797721,1758047450740,-403.39045703,0.00030136,6]
[385797722,1758047450749,-400.0,0.00030136,6]
[385797723,1758047450758,-400.0,0.00030136,6]
[385797724,1758047450768,-452.46530734,0.00030136,2]
[385797725,1758047450777,-674.22,0.00030136,6]
[385797726,1758047450786,-934.84,0.00030136,6]
[385797727,1758047450795,-500.0,0.00030136,6]
[385797728,1758047450804,-503.23519599,0.00030136,6]
[385797729,1758047450814,-500.0,0.00030136,6]
[385797730,1758047450823,-881.46,0.00030136,6]
[385797731,1758047450833,-500.0,0.00030136,6]
[385797732,1758047450842,-400.0,0.00030136,6]
[385797733,1758047450851,-500.0,0.00030136,6]
[385797734,1758047450860,-400.0,0.00030136,6]
[385797735,1758047450870,-201.951102,0.00030136,7]
[385797736,1758047450879,-201.951102,0.00030136,7]
[385797737,1758047450888,-662.74,0.00030136,6]
[385797738,1758047450897,-400.0,0.00030136,6]
[385797739,1758047450906,-201.951102,0.00030136,7]
[385797740,1758047450916,-400.0,0.00030136,6]
[385797741,1758047450925,-400.0,0.00030136,6]
[385797742,1758047450934,-201.951107,0.00030136,7]
[385797743,1758047450943,-539.06,0.00030136,6]
[385797744,1758047450951,-400.0,0.00030136,6]
[385797745,1758047450960,-521.61,0.00030136,6]
[385797746,1758047450969,-3866.02,0.00030136,6]
[385797747,1758047450978,-924.97,0.00030136,6]
[385797748,1758047450988,-400.0,0.00030136,6]
[385797749,1758047450997,-400.0,0.00030136,6]
[385797750,1758047451008,-400.0,0.00030136,6]
[385797751,1758047451017,-554.85,0.00030136,6]
[385797752,1758047451026,-400.0,0.00030136,6]
[385797753,1758047451035,-400.0,0.00030136,6]
[385797754,1758047451044,-594.86,0.00030136,6]
[385797755,1758047451053,-798.32,0.00030136,6]
[385797756,1758047451062,-440.09,0.00030136,6]
[385797757,1758047451071,-537.06,0.00030136,6]
[385797758,1758047451081,-510.5,0.00030136,6]
[385797759,1758047451090,-702.86,0.00030136,6]
[385797760,1758047451099,-600.6,0.00030136,6]
[385797761,1758047451108,-400.0,0.00030136,6]
[385797762,1758047451117,-14098.53,0.00030136,6]
[385797763,1758047451126,-322.94545934,0.00030136,6]
[385797764,1758047451135,-1000.0,0.00030136,6]
[385797765,1758047451144,-1195.25,0.00030136,6]
[385797766,1758047451153,-400.0,0.00030136,6]
[385797767,1758047451162,-593.88,0.00030136,6]
[385797768,1758047451171,-400.0,0.00030136,6]
[385797769,1758047451181,-983.68,0.00030136,6]
[385797770,1758047451191,-832.27,0.00030136,6]
[385797771,1758047451200,-400.0,0.00030136,6]
[385797772,1758047451210,-648.65,0.00030136,6]
[385797773,1758047451219,-400.0,0.00030136,6]
[385797774,1758047451229,-400.0,0.00030136,6]
[385797775,1758047451238,-400.0,0.00030136,6]
[385797776,1758047451247,-400.0,0.00030136,6]
[385797777,1758047451256,-400.0,0.00030136,6]
[385797778,1758047451265,-910.36,0.00030136,6]
[385797779,1758047451274,-967.74,0.00030136,6]
[385797780,1758047451283,-1155.56,0.00030136,6]
[385797781,1758047451292,-465.08,0.00030136,6]
[385797782,1758047451301,-400.0,0.00030136,6]
[385797783,1758047451310,-1387.19,0.00030136,6]
[385797784,1758047451319,-2437.93,0.00030136,6]
[385797785,1758047451328,-400.0,0.00030136,6]
[385797786,1758047451337,-400.0,0.00030136,6]
[385797787,1758047451346,-400.0,0.00030136,6]
[385797788,1758047451355,-400.0,0.00030136,6]
[385797789,1758047451364,-708.99,0.00030136,6]
[385797790,1758047451374,-400.0,0.00030136,6]
[385797791,1758047451383,-400.0,0.00030136,6]
[385797792,1758047451392,-989.12,0.00030136,6]
[385797793,1758047451404,-400.0,0.00030136,6]
[385797794,1758047451413,-1329.34,0.00030136,6]
[385797795,1758047451422,-400.0,0.00030136,6]
[385797796,1758047451431,-933.57,0.00030136,6]
[385797797,1758047451442,-756.47,0.00030136,6]
[385797798,1758047451451,-400.0,0.00030136,6]
[385797799,1758047451461,-3627.26,0.00030136,6]
[385797800,1758047451471,-400.0,0.00030136,6]
[385797801,1758047451481,-627.39,0.00030136,6]
[385797802,1758047451491,-400.0,0.00030136,6]
[385797803,1758047451501,-400.0,0.00030136,6]
[385797804,1758047451511,-400.0,0.00030136,6]
[385797805,1758047451520,-400.0,0.00030136,6]
[385797806,1758047451530,-489.48,0.00030136,6]
[385797807,1758047451539,-549.0,0.00030136,6]
[385797808,1758047451549,-500.41371142,0.00030136,6]
[385797809,1758047451559,-824.87,0.00030136,6]
[385797810,1758047451568,-673.15,0.00030136,6]
[385797811,1758047451577,-400.0,0.00030136,6]
[385797812,1758047451587,-400.0,0.00030136,6]
[385797813,1758047451596,-400.0,0.00030136,6]
[385797814,1758047451718,-400.0,0.00030136,6]
[385797815,1758047451727,-542.28,0.00030136,6]
[385797816,1758047451737,-1316.13,0.00030136,6]
[385797817,1758047451746,-400.0,0.00030136,6]
[385797818,1758047451756,-400.0,0.00030136,6]
[385797819,1758047451765,-400.0,0.00030136,6]
[385797820,1758047451774,-404.46660653,0.00030136,6]
[385797821,1758047451784,-1289.35,0.00030136,6]
[385797822,1758047451793,-400.0,0.00030136,6]
[385797823,1758047451803,-400.0,0.00030136,6]
[385797824,1758047451813,-400.0,0.00030136,6]
[385797825,1758047451822,-408.96532654,0.00030136,6]
[385797826,1758047451832,-538.32,0.00030136,6]
[385797827,1758047451841,-400.0,0.00030136,6]
[385797828,1758047451851,-400.0,0.00030136,6]
[385797829,1758047451860,-400.0,0.00030136,6]
[385797830,1758047451870,-400.0,0.00030136,6]
[385797831,1758047451880,-400.0,0.00030136,6]
[385797832,1758047451889,-1084.85,0.00030136,6]
[385797833,1758047451899,-400.0,0.00030136,6]
[385797834,1758047451909,-400.0,0.00030136,6]
[385797835,1758047451919,-1113.98,0.00030136,6]
[385797836,1758047451928,-400.0,0.00030136,6]
[385797837,1758047451937,-934.86,0.00030136,6]
[385797838,1758047451946,-400.0,0.00030136,6]
[385797839,1758047451955,-867.79,0.00030136,6]
[385797840,1758047451965,-471.4,0.00030136,6]
[385797841,1758047451974,-1007.24,0.00030136,6]
[385797842,1758047451983,-400.0,0.00030136,6]
[385797843,1758047451992,-400.0,0.00030136,6]
[385797844,1758047452001,-948.62,0.00030136,6]
[385797845,1758047452010,-467.97,0.00030136,6]
[385797846,1758047452020,-400.0,0.00030136,6]
[385797847,1758047452029,-500.02,0.00030136,6]
[385797848,1758047452039,-400.0,0.00030136,6]
[385797849,1758047452048,-400.0,0.00030136,6]
[385797850,1758047452058,-423.92,0.00030136,6]
[385797851,1758047452067,-400.0,0.00030136,6]
[385797852,1758047452077,-844.0,0.00030136,6]
[385797853,1758047452087,-400.0,0.00030136,6]
[385797854,1758047452097,-493.33,0.00030136,6]
[385797855,1758047452106,-502.41265883,0.00030136,6]
[385797856,1758047452115,-735.64,0.00030136,6]
[385797857,1758047452125,-400.0,0.00030136,6]
[385797858,1758047452134,-400.0,0.00030136,6]
[385797859,1758047452144,-400.0,0.00030136,6]
[385797860,1758047452154,-4365.82,0.00030136,6]
[385797861,1758047452165,-400.0,0.00030136,6]
[385797862,1758047452174,-684.05,0.00030136,6]
[385797863,1758047452184,-400.0,0.00030136,6]
[385797864,1758047452193,-400.0,0.00030136,6]
[385797865,1758047452202,-538.94,0.00030136,6]
[385797866,1758047452211,-400.0,0.00030136,6]
[385797867,1758047452220,-500.0,0.00030136,6]
[385797868,1758047452229,-400.0,0.00030136,6]
[385797869,1758047452239,-669.04,0.00030136,6]
[385797870,1758047452248,-500.0,0.00030136,6]
[385797871,1758047452258,-500.0,0.00030136,6]
[385797872,1758047452267,-400.0,0.00030136,6]
[385797873,1758047452276,-402.098326,0.00030136,6]
[385797874,1758047452285,-599.12,0.00030136,6]
[385797875,1758047452294,-1092.66,0.00030136,6]
[385797876,1758047452303,-400.0,0.00030136,6]
[385797877,1758047452312,-400.0,0.00030136,6]
[385797878,1758047452321,-408.51581995,0.00030136,6]
[385797879,1758047452331,-853.45,0.00030136,6]
[385797880,1758047452341,-724.66,0.00030136,6]
[385797881,1758047452350,-780.22,0.00030136,6]
[385797882,1758047452359,-400.0,0.00030136,6]
[385797883,1758047452369,-400.0,0.00030136,6]
[385797884,1758047452378,-479.26,0.00030136,6]
[385797885,1758047452387,-400.0,0.00030136,6]
[385797886,1758047452398,-446.47,0.00030136,6]
[385797887,1758047452413,-757.93,0.00030136,6]
[385797888,1758047452423,-483.13,0.00030136,6]
[385797889,1758047452434,-400.0,0.00030136,6]
[385797890,1758047452443,-614.32,0.00030136,6]
[385797891,1758047452453,-995.2,0.00030136,6]
[385797892,1758047452462,-655.36,0.00030136,6]
[385797893,1758047452471,-1123.35,0.00030136,6]
[385797894,1758047452481,-500.0,0.00030136,6]
[385797895,1758047452491,-151.0,0.00030136,7]
[385797896,1758047452500,-2051.76,0.00030136,6]
[385797897,1758047452510,-400.0,0.00030136,6]
[385797898,1758047452519,-1176.21,0.00030136,6]
[385797899,1758047452529,-588.68,0.00030136,6]
[385797900,1758047452538,-151.0,0.00030136,7]
[385797901,1758047452548,-693.26,0.00030136,6]
[385797902,1758047452557,-400.0,0.00030136,6]
[385797903,1758047452567,-405.00613069,0.00030136,6]
[385797904,1758047452577,-400.0,0.00030136,6]
[385797905,1758047452588,-400.0,0.00030136,6]
[385797906,1758047452597,-500.0,0.00030136,6]
[385797907,1758047452607,-500.0,0.00030136,6]
[385797908,1758047452617,-402.00203416,0.00030136,6]
[385797909,1758047452626,-560.66,0.00030136,6]
[385797910,1758047452635,-400.0,0.00030136,6]
[385797911,1758047452645,-416.47,0.00030136,6]
[385797912,1758047452655,-1007.96,0.00030136,6]
[385797913,1758047452665,-400.0,0.00030136,6]
[385797914,1758047452675,-400.0,0.00030136,6]
[385797915,1758047452684,-463.42,0.00030136,6]
[385797916,1758047452694,-400.0,0.00030136,6]
[385797917,1758047452704,-400.0,0.00030136,6]
[385797918,1758047452714,-684.03,0.00030136,2]
[385797919,1758047452723,-684.03,0.00030136,2]
[385797920,1758047452733,-863.73,0.00030136,6]
[385797921,1758047452742,-684.03,0.00030136,2]
[385797922,1758047452751,-611.4,0.00030136,6]
[385797923,1758047452761,-684.03,0.00030136,2]
[385797924,1758047452771,-168.40261903,0.00030136,6]
[385797925,1758047452780,-400.0,0.00030136,6]
[385797926,1758047452790,-1316.82,0.00030136,6]
[385797927,1758047452799,-2402.96,0.00030136,6]
[385797928,1758047452809,-2657.8,0.00030136,6]
[385797929,1758047452818,-567.68,0.00030136,6]
[385797930,1758047452828,-400.0,0.00030136,6]
[385797931,1758047452838,-449.27,0.00030136,6]
[385797932,1758047452847,-633.85,0.00030136,6]
[385797933,1758047452858,-400.0,0.00030136,6]
[385797934,1758047452867,-400.0,0.00030136,6]
[385797935,1758047452877,-400.0,0.00030136,6]
[385797936,1758047452886,-401.05505654,0.00030136,6]
[385797937,1758047452895,-659.67,0.00030136,6]
[385797938,1758047452905,-400.0,0.00030136,6]
[385797939,1758047452914,-400.0,0.00030136,6]
[385797940,1758047452924,-852.09,0.00030136,6]
[385797941,1758047452933,-1940.41,0.00030136,6]
[385797942,1758047452942,-151.0,0.00030136,7]
[385797943,1758047452952,-400.0,0.00030136,6]
[385797944,1758047452961,-400.0,0.00030136,6]
[385797945,1758047452971,-400.0,0.00030136,6]
[385797946,1758047452980,-400.0,0.00030136,6]
[385797947,1758047452989,-2413.87,0.00030136,6]
[385797948,1758047452999,-669.07,0.00030136,6]
[385797949,1758047453009,-400.0,0.00030136,6]
[385797950,1758047453018,-400.0,0.00030136,6]
[385797951,1758047453028,-151.0,0.00030136,7]
[385797952,1758047453038,-400.0,0.00030136,6]
[385797953,1758047453047,-544.7,0.00030136,6]
[385797954,1758047453056,-400.0,0.00030136,6]
[385797955,1758047453066,-387.88366326,0.00030136,6]
[385797956,1758047453075,-400.0,0.00030136,6]
[385797957,1758047453085,-400.0,0.00030136,6]
[385797958,1758047453095,-400.0,0.00030136,6]
[385797959,1758047453104,-400.0,0.00030136,6]
[385797960,1758047453114,-400.0,0.00030136,6]
[385797961,1758047453125,-500.0,0.00030136,6]
[385797962,1758047453134,-500.0,0.00030136,6]
[385797963,1758047453143,-491.56,0.00030136,6]
[385797964,1758047453153,-400.0,0.00030136,6]
[385797965,1758047453163,-560.78,0.00030136,6]
[385797966,1758047453173,-400.0,0.00030136,6]
[385797967,1758047453182,-435.49,0.00030136,6]
[385797968,1758047453191,-2714.52,0.00030136,6]
[385797969,1758047453201,-561.36,0.00030136,6]
[385797970,1758047453210,-400.0,0.00030136,6]
[385797971,1758047453220,-661.2,0.00030136,6]
[385797972,1758047453229,-400.0,0.00030136,6]
[385797973,1758047453238,-400.0,0.00030136,6]
[385797974,1758047453248,-400.0,0.00030136,6]
[385797975,1758047453257,-4091.94,0.00030136,6]
[385797976,1758047453266,-1146.39,0.00030136,6]
[385797977,1758047453276,-419.78,0.00030136,6]
[385797978,1758047453285,-678.31,0.00030136,6]
[385797979,1758047453294,-400.0,0.00030136,6]
[385797980,1758047453303,-922.91,0.00030136,6]
[385797981,1758047453313,-825.95,0.00030136,6]
[385797982,1758047453322,-400.0,0.00030136,6]
[385797983,1758047453332,-400.0,0.00030136,6]
[385797984,1758047453341,-400.0,0.00030136,6]
[385797985,1758047453351,-400.0,0.00030136,5]
[385797986,1758047453360,-984.53,0.00030136,6]
[385797987,1758047453370,-2643.28,0.00030136,6]
[385797988,1758047453380,-400.0,0.00030136,6]
[385797989,1758047453390,-200.0,0.00030136,2]
[385797990,1758047453404,-794.77,0.00030136,6]
[385797991,1758047453415,-400.0,0.00030136,6]
[385797992,1758047453424,-400.0,0.00030136,6]
[385797993,1758047453434,-400.0,0.00030136,6]
[385797994,1758047453444,-650.19,0.00030136,6]
[385797995,1758047453453,-760.4,0.00030136,6]
[385797996,1758047453462,-1149.2,0.00030136,6]
[385797997,1758047453471,-400.57776706,0.00030136,6]
[385797998,1758047453480,-400.0,0.00030136,6]
[385797999,1758047453490,-400.0,0.00030136,6]
[385798000,1758047453500,-401.29959463,0.00030136,6]
[385798001,1758047453509,-424.86389676,0.00030136,6]
[385798002,1758047453519,-852.14,0.00030136,6]
[385798003,1758047453528,-400.0,0.00030136,6]
[385798004,1758047453538,-400.0,0.00030136,6]
[385798005,1758047453547,-400.0,0.00030136,6]
[385798006,1758047453557,-959.02,0.00030136,6]
[385798007,1758047453566,-487.69,0.00030136,6]
[385798008,1758047453575,-400.0,0.00030136,6]
[385798009,1758047453585,-400.0,0.00030136,6]
[385798010,1758047453595,-400.0,0.00030136,6]
[385798011,1758047453604,-400.0,0.00030136,6]
[385798012,1758047453614,-400.0,0.00030136,6]
[385798013,1758047453623,-400.0,0.00030136,6]
[385798014,1758047453632,-503.64,0.00030136,6]
[385798015,1758047453642,-406.64,0.00030136,6]
[385798016,1758047453651,-400.0,0.00030136,6]
[385798017,1758047453661,-755.72,0.00030136,6]
[385798018,1758047453670,-700.18,0.00030136,6]
[385798019,1758047453679,-451.23,0.00030136,6]
[385798020,1758047453688,-500.0,0.00030136,6]
[385798021,1758047453698,-400.0,0.00030136,6]
[385798022,1758047453707,-208.26552532,0.00030136,2]
[385798023,1758047453716,-771.61,0.00030136,6]
[385798024,1758047453725,-472.34,0.00030136,6]
[385798025,1758047453735,-595.63,0.00030136,6]
[385798026,1758047453744,-500.0,0.00030136,6]
[385798027,1758047453754,-400.0,0.00030136,6]
[385798028,1758047453763,-500.0,0.00030136,6]
[385798029,1758047453772,-500.0,0.00030136,6]
[385798030,1758047454029,-400.0,0.00030136,6]
[385798031,1758047454086,-1125.68,0.00030136,6]
[385798032,1758047454096,-286.637584,0.00030136,7]
[385798033,1758047454105,-512.99655372,0.00030136,6]
[385798034,1758047454114,-254.83643027,0.00030136,6]
[385798035,1758047454123,-400.0,0.00030136,6]
[385798036,1758047454133,-418.98,0.00030136,6]
[385798037,1758047454142,-400.0,0.00030136,6]
[385798038,1758047454152,-952.83,0.00030136,6]
[385798039,1758047454161,-525.48,0.00030136,6]
[385798040,1758047454170,-405.55950015,0.00030136,6]
[385798041,1758047454179,-432.19,0.00030136,6]
[385798042,1758047454189,-400.0,0.00030136,6]
[385798043,1758047454198,-400.0,0.00030136,6]
[385798044,1758047454208,-400.0,0.00030136,6]
[385798045,1758047454217,-400.0,0.00030136,6]
[385798046,1758047454226,-400.0,0.00030136,6]
[385798047,1758047454235,-378.94679627,0.00030136,6]
[385798048,1758047454244,-742.26,0.00030136,6]
[385798049,1758047454254,-400.0,0.00030136,6]
[385798050,1758047454263,-400.0,0.00030136,6]
[385798051,1758047454272,-400.0,0.00030136,6]
[385798052,1758047454281,-400.0,0.00030136,6]
[385798053,1758047454290,-400.0,0.00030136,6]
[385798054,1758047454299,-400.0,0.00030136,6]
[385798055,1758047454308,-713.21,0.00030136,6]
[385798056,1758047454318,-400.0,0.00030136,6]
[385798057,1758047454328,-400.0,0.00030136,6]
[385798058,1758047454338,-400.0,0.00030136,6]
[385798059,1758047454347,-400.0,0.00030136,6]
[385798060,1758047454357,-400.0,0.00030136,6]
[385798061,1758047454367,-400.0,0.00030136,6]
[385798062,1758047454376,-400.0,0.00030136,6]
[385798063,1758047454385,-400.0,0.00030136,6]
[385798064,1758047454395,-600.41,0.00030136,6]
[385798065,1758047454408,-400.0,0.00030136,6]
[385798066,1758047454418,-400.0,0.00030136,3]
[385798067,1758047454427,-496.12,0.00030136,6]
[385798068,1758047454437,-400.0,0.00030136,6]
[385798069,1758047454447,-1000.0,0.00030137,7]
[385798070,1758047454456,-152.57,0.00030137,30]
[385798071,1758047454466,-234.79,0.00030137,30]
[385798072,1758047454475,-168.0,0.00030145,2]
[385798073,1758047454485,-168.0,0.00030146,2]
[385798074,1758047454496,-500.0,0.00030151,6]
[385798075,1758047454505,-150.0,0.00030151,2]
[385798076,1758047454515,-500.0,0.00030151,6]
[385798077,1758047454524,-684.03,0.00030151,2]
[385798078,1758047454534,-1000.0,0.00030162,7]
[385798079,1758047454544,-500.0,0.00030166,2]
[385798080,1758047454553,-200.0,0.00030167,2]
[385798081,1758047454563,-500.0,0.00030173,5]
[385798082,1758047454572,-500.0,0.00030173,5]
[385798083,1758047454582,-500.0,0.00030173,5]
[385798084,1758047454592,-504.62513184,0.00030173,5]
[385798085,1758047454601,-500.0,0.00030173,5]
[385798086,1758047454611,-500.0,0.00030173,5]
[385798087,1758047454621,-200.0,0.00030173,5]
[385798088,1758047454630,-500.0,0.00030173,5]
[385798089,1758047454640,-500.0,0.00030173,5]
[385798090,1758047454650,-1000.0,0.00030187,7]
[385798091,1758047454660,-1914.62,0.000302,3]
[385798092,1758047454669,-168.0,0.00030204,2]
[385798093,1758047454679,-1000.0,0.00030212,7]
[385798094,1758047454689,-4159.45661183,0.00030228,2]
[385798095,1758047454698,-1000.0,0.00030237,7]
[385798096,1758047454709,-151.0,0.00030241,4]
[385798097,1758047454718,-171.48,0.00030243,2]
[385798098,1758047454727,-1000.0,0.00030262,7]
[385798099,1758047454737,-838.36626318,0.00030272,2]
[385798100,1758047454746,-167.3759438,0.0003028,2]
[385798101,1758047454755,-1000.0,0.00030286,7]
[385798102,1758047454765,-151.0,0.00030291,2]
[385798103,1758047454774,-391.79587756,0.00030297,2]
[385798104,1758047454784,-1914.62,0.000303,3]
[385798105,1758047454794,-1234.32925662,0.0003031,2]
[385798106,1758047454803,-1000.0,0.00030311,7]
[385798107,1758047454812,-168.0,0.00030324,2]
[385798108,1758047454822,-1300.0,0.00030326,7]
[385798109,1758047454832,-1000.0,0.00030336,7]
[385798110,1758047454842,-500.0,0.00030341,120]
[385798111,1758047454851,-1000.0,0.00030361,7]
[385798112,1758047454863,-500.0,0.00030371,6]
[385798113,1758047454873,-500.0,0.00030371,6]
[385798114,1758047454883,-500.0,0.00030371,6]
[385798115,1758047454893,-465.35490267,0.00030371,6]
[385798116,1758047454903,-500.0,0.00030371,6]
[385798117,1758047454913,-500.0,0.00030371,6]
[385798118,1758047454925,-500.0,0.00030371,6]
[385798119,1758047454935,-500.0,0.00030371,6]
[385798120,1758047454945,-4705.0,0.00030384,2]
[385798121,1758047454954,-1000.0,0.00030386,7]
[385798122,1758047454964,-160.40177069,0.00030392,6]
[385798123,1758047454974,-482.0,0.00030392,2]
[385798124,1758047454983,-203.19673954,0.00030392,2]
[385798125,1758047454992,-500.0,0.00030392,2]
[385798126,1758047455002,-150.0,0.00030392,2]
[385798127,1758047455011,-150.0,0.00030392,2]
[385798128,1758047455021,-150.0,0.00030392,2]
[385798129,1758047455031,-150.0,0.00030392,2]
[385798130,1758047455040,-150.0,0.00030392,2]
[385798131,1758047455049,-150.0,0.00030392,2]
[385798132,1758047455059,-150.0,0.00030392,2]
[385798133,1758047455068,-150.0,0.00030392,2]
[385798134,1758047455078,-200.0,0.00030392,2]
[385798135,1758047455087,-150.0,0.00030392,2]
[385798136,1758047455097,-150.0,0.00030392,2]
[385798137,1758047455106,-500.0,0.00030399,6]
[385798138,1758047455116,-1000.0,0.00030399,7]
[385798139,1758047455125,-1000.0,0.00030399,7]
[385798140,1758047455135,-1138.79,0.00030399,7]
[385798141,1758047455145,-152.70735904,0.00030399,20]
[385798142,1758047455154,-14515.09099862,0.000304,2]
[385798143,1758047455163,-150.0,0.000304,2]